fUSD/lending_fUSD_20240223
["ID","MTS","AMOUNT","RATE_DAILY","PERIOD"]
[314939186,1708690240262,-500.0,0.00027397,2]
[314939187,1708690240272,-500.0,0.00027397,2]
[314939188,1708690240281,-500.0,0.00027397,2]
[314939190,1708690240291,-500.0,0.00027397,2]
[314939191,1708690240301,-500.0,0.00027397,2]
[314939193,1708690240310,-500.0,0.00027397,2]
[314939194,1708690240319,-500.0,0.00027397,2]
[314939195,1708690240329,-500.0,0.00027397,2]
[314939196,1708690240340,-500.0,0.00027397,2]
[314939197,1708690240351,-500.0,0.00027397,2]
[314939198,1708690240362,-500.0,0.00027397,2]
[314939199,1708690240371,-500.0,0.00027397,2]
[314939200,1708690240380,-500.0,0.00027397,2]
[314939201,1708690240389,-500.0,0.00027397,2]
[314939202,1708690240399,-500.0,0.00027397,2]
[314939203,1708690240408,-500.0,0.00027397,2]
[314939204,1708690240447,-500.0,0.00027397,2]
[314939205,1708690240457,-500.0,0.00027397,2]
[314939206,1708690240467,-500.0,0.00027397,2]
[314939207,1708690240476,-500.0,0.00027397,2]
[314939208,1708690240485,-500.0,0.00027397,2]
[314939209,1708690240494,-500.0,0.00027397,2]
[314939210,1708690240504,-500.0,0.00027397,2]
[314939211,1708690240513,-500.0,0.00027397,2]
[314939212,1708690240523,-500.0,0.00027397,2]
[314939213,1708690240532,-500.0,0.00027397,2]
[314939214,1708690240541,-500.0,0.00027397,2]
[314939215,1708690240552,-500.0,0.00027397,2]
[314939216,1708690240562,-816.51,0.00027397,2]
[314939217,1708690240572,-500.0,0.00027397,2]
[314939218,1708690240582,-500.0,0.00027397,2]
[314939219,1708690240591,-500.0,0.00027397,2]
[314939220,1708690240600,-500.0,0.00027397,2]
[314939221,1708690240609,-500.0,0.00027397,2]
[314939222,1708690240618,-500.0,0.00027397,2]
[314939223,1708690240627,-500.0,0.00027397,2]
[314939224,1708690240636,-500.0,0.00027397,2]
[314939225,1708690240645,-500.0,0.00027397,2]
[314939226,1708690240654,-500.0,0.00027397,2]
[314939227,1708690240663,-500.0,0.00027397,2]
[314939228,1708690240673,-500.0,0.00027397,2]
[314939229,1708690240682,-500.0,0.00027397,2]
[314939230,1708690240692,-500.0,0.00027397,2]
[314939231,1708690240702,-500.0,0.00027397,2]
[314939232,1708690240711,-529.92763708,0.00027397,2]
[314939233,1708690240721,-500.0,0.00027397,2]
[314939234,1708690240731,-500.0,0.00027397,2]
[314939235,1708690240740,-500.0,0.00027397,2]
[314939236,1708690240749,-500.0,0.00027397,2]
[314939237,1708690240759,-500.0,0.00027397,2]
[314939238,1708690240768,-500.0,0.00027397,2]
[314939239,1708690240778,-500.0,0.00027397,2]
[314939240,1708690240992,-500.0,0.00027397,2]
[314939241,1708690241021,-500.0,0.00027397,2]
[314939242,1708690241030,-500.0,0.00027397,2]
[314939243,1708690241039,-500.0,0.00027397,2]
[314939244,1708690241050,-500.0,0.00027397,2]
[314939245,1708690241062,-500.0,0.00027397,2]
[314939246,1708690241072,-500.0,0.00027397,2]
[314939247,1708690241081,-500.0,0.00027397,2]
[314939248,1708690241091,-500.0,0.00027397,2]
[314939249,1708690241101,-500.0,0.00027397,2]
[314939250,1708690241110,-500.0,0.00027397,2]
[314939251,1708690241119,-500.0,0.00027397,2]
[314939252,1708690241128,-500.0,0.00027397,2]
[314939253,1708690241138,-500.0,0.00027397,2]
[314939254,1708690241147,-500.0,0.00027397,2]
[314939255,1708690241157,-500.0,0.00027397,2]
[314939256,1708690241166,-500.0,0.00027397,2]
[314939257,1708690241176,-500.0,0.00027397,2]
[314939258,1708690241186,-1000.0,0.00027397,7]
[314939259,1708690241195,-500.0,0.00027397,2]
[314939260,1708690241204,-642.45669475,0.00027397,2]
[314939261,1708690241214,-500.0,0.00027397,2]
[314939262,1708690241223,-500.0,0.00027397,2]
[314939263,1708690241233,-500.0,0.00027397,2]
[314939264,1708690241242,-500.0,0.00027397,2]
[314939265,1708690241251,-500.0,0.00027397,2]
[314939266,1708690241261,-500.0,0.00027397,2]
[314939267,1708690241270,-500.0,0.00027397,2]
[314939268,1708690241279,-500.0,0.00027397,2]
[314939269,1708690241289,-500.0,0.00027397,2]
[314939270,1708690241298,-500.0,0.00027397,2]
[314939271,1708690241307,-500.0,0.00027397,2]
[314939272,1708690241317,-500.0,0.00027397,2]
[314939273,1708690241327,-500.0,0.00027397,2]
[314939274,1708690241336,-500.0,0.00027397,2]
[314939275,1708690241345,-500.0,0.00027397,2]
[314939276,1708690241355,-500.0,0.00027397,2]
[314939277,1708690241364,-515.7592257,0.00027397,2]
[314939278,1708690241373,-500.0,0.00027397,2]
[314939279,1708690241383,-500.0,0.00027397,2]
[314939281,1708690241392,-525.30040149,0.00027397,2]
[314939282,1708690241401,-500.0,0.00027397,2]
[314939284,1708690241411,-500.0,0.00027397,2]
[314939286,1708690241421,-500.0,0.00027397,2]
[314939288,1708690241430,-500.0,0.00027397,2]
[314939289,1708690241439,-500.0,0.00027397,2]
[314939291,1708690241448,-500.0,0.00027397,2]
[314939293,1708690241457,-500.0,0.00027397,2]
[314939295,1708690241467,-500.0,0.00027397,2]
[314939296,1708690241476,-500.0,0.00027397,2]
[314939298,1708690241485,-500.0,0.00027397,2]
[314939300,1708690241495,-500.0,0.00027397,2]
[314939302,1708690241504,-500.0,0.00027397,2]
[314939304,1708690241513,-710.61,0.00027397,2]
[314939305,1708690241523,-500.0,0.00027397,2]
[314939307,1708690241532,-500.0,0.00027397,2]
[314939309,1708690241542,-500.0,0.00027397,2]
[314939310,1708690241552,-500.0,0.00027397,2]
[314939312,1708690241562,-500.0,0.00027397,2]
[314939313,1708690241571,-500.0,0.00027397,2]
[314939314,1708690241581,-500.0,0.00027397,2]
[314939315,1708690241592,-500.0,0.00027397,2]
[314939316,1708690241602,-500.0,0.00027397,2]
[314939317,1708690241611,-500.0,0.00027397,2]
[314939318,1708690241621,-500.0,0.00027397,2]
[314939319,1708690241631,-500.0,0.00027397,2]
[314939320,1708690241641,-500.0,0.00027397,2]
[314939321,1708690241651,-500.0,0.00027397,2]
[314939322,1708690241660,-500.0,0.00027397,2]
[314939323,1708690241670,-500.0,0.00027397,2]
[314939324,1708690241679,-500.0,0.00027397,2]
[314939325,1708690241689,-500.0,0.00027397,2]
[314939326,1708690241698,-500.0,0.00027397,2]
[314939327,1708690241708,-500.0,0.00027397,2]
[314939328,1708690241717,-500.0,0.00027397,2]
[314939329,1708690241726,-500.0,0.00027397,2]
[314939330,1708690241736,-500.0,0.00027397,2]
[314939331,1708690241745,-500.0,0.00027397,2]
[314939332,1708690241754,-500.0,0.00027397,2]
[314939333,1708690241764,-500.0,0.00027397,2]
[314939334,1708690241773,-500.0,0.00027397,2]
[314939335,1708690241782,-500.0,0.00027397,2]
[314939336,1708690241791,-500.0,0.00027397,2]
[314939337,1708690241802,-500.0,0.00027397,2]
[314939338,1708690241812,-500.0,0.00027397,2]
[314939339,1708690241821,-500.0,0.00027397,2]
[314939340,1708690241830,-155.47937735,0.00027397,2]
[314939341,1708690241839,-500.0,0.00027397,2]
[314939342,1708690241847,-500.0,0.00027397,2]
[314939343,1708690241857,-500.0,0.00027397,2]
[314939344,1708690241866,-893.82,0.00027397,2]
[314939345,1708690241876,-500.0,0.00027397,2]
[314939346,1708690241885,-9495.13,0.00027397,2]
[314939347,1708690241894,-500.0,0.00027397,2]
[314939348,1708690241903,-500.0,0.00027397,2]
[314939349,1708690241912,-500.0,0.00027397,2]
[314939350,1708690241921,-500.0,0.00027397,2]
[314939351,1708690241930,-697.4,0.00027397,2]
[314939352,1708690241938,-500.0,0.00027397,2]
[314939353,1708690241947,-500.0,0.00027397,2]
[314939354,1708690241957,-526.03283944,0.00027397,2]
[314939355,1708690241965,-500.0,0.00027397,2]
[314939356,1708690241974,-969.47,0.00027397,2]
[314939357,1708690241983,-500.0,0.00027397,2]
[314939358,1708690241992,-500.0,0.00027397,2]
[314939359,1708690242002,-500.0,0.00027397,2]
[314939360,1708690242010,-650.91,0.00027397,2]
[314939361,1708690242019,-529.12,0.00027397,2]
[314939362,1708690242028,-500.0,0.00027397,2]
[314939363,1708690242038,-754.91,0.00027397,2]
[314939364,1708690242047,-500.0,0.00027397,2]
[314939365,1708690242058,-500.0,0.00027397,2]
[314939366,1708690242068,-500.0,0.00027397,2]
[314939367,1708690242078,-2598.16,0.00027397,2]
[314939368,1708690242088,-561.71,0.00027397,2]
[314939369,1708690242097,-500.0,0.00027397,2]
[314939370,1708690242106,-1150.02,0.00027397,2]
[314939371,1708690242116,-500.0,0.00027397,2]
[314939372,1708690242125,-521.44140571,0.00027397,2]
[314939373,1708690242135,-796.34,0.00027397,2]
[314939374,1708690242144,-500.0,0.00027397,2]
[314939375,1708690242153,-500.0,0.00027397,2]
[314939376,1708690242163,-500.0,0.00027397,2]
[314939377,1708690242172,-513.96,0.00027397,2]
[314939378,1708690242181,-582.73,0.00027397,2]
[314939379,1708690242190,-1302.34,0.00027397,2]
[314939380,1708690242199,-500.0,0.00027397,2]
[314939381,1708690242209,-500.0,0.00027397,2]
[314939382,1708690242218,-781.56,0.00027397,2]
[314939383,1708690242228,-500.0,0.00027397,2]
[314939384,1708690242238,-500.0,0.00027397,2]
[314939385,1708690242247,-1964.22,0.00027397,2]
[314939386,1708690242257,-500.0,0.00027397,2]
[314939387,1708690242266,-991.92,0.00027397,2]
[314939388,1708690242276,-500.0,0.00027397,2]
[314939389,1708690242286,-500.0,0.00027397,2]
[314939390,1708690242295,-644.3,0.00027397,2]
[314939391,1708690242306,-500.0,0.00027397,2]
[314939392,1708690242316,-500.0,0.00027397,2]
[314939393,1708690242325,-1360.2,0.00027397,2]
[314939394,1708690242335,-500.0,0.00027397,2]
[314939395,1708690242344,-500.0,0.00027397,2]
[314939396,1708690242353,-500.0,0.00027397,2]
[314939397,1708690242363,-2185.71,0.00027397,2]
[314939398,1708690242372,-500.0,0.00027397,2]
[314939399,1708690242382,-2300.83,0.00027397,2]
[314939400,1708690242391,-500.0,0.00027397,2]
[314939401,1708690242401,-793.54,0.00027397,2]
[314939402,1708690242410,-500.0,0.00027397,2]
[314939403,1708690242420,-2274.06,0.00027397,2]
[314939404,1708690242429,-8929.92,0.00027397,2]
[314939405,1708690242438,-500.0,0.00027397,2]
[314939406,1708690242448,-952.26,0.00027397,2]
[314939407,1708690242458,-500.0,0.00027397,2]
[314939408,1708690242468,-500.0,0.00027397,2]
[314939409,1708690242478,-500.0,0.00027397,2]
[314939410,1708690242488,-1898.21,0.00027397,2]
[314939411,1708690242497,-500.0,0.00027397,2]
[314939412,1708690242507,-980.93,0.00027397,2]
[314939413,1708690242516,-2928.48,0.00027397,2]
[314939414,1708690242526,-564.15,0.00027397,2]
[314939415,1708690242535,-500.0,0.00027397,2]
[314939416,1708690242545,-583.24,0.00027397,2]
[314939417,1708690242556,-500.0,0.00027397,2]
[314939418,1708690242565,-1160.32,0.00027397,2]
[314939419,1708690242574,-500.0,0.00027397,2]
[314939420,1708690242584,-742.26,0.00027397,2]
[314939421,1708690242593,-500.0,0.00027397,2]
[314939422,1708690242603,-1297.04,0.00027397,2]
[314939424,1708690242612,-539.46,0.00027397,2]
[314939425,1708690242622,-500.0,0.00027397,2]
[314939426,1708690242631,-500.0,0.00027397,2]
[314939427,1708690242640,-500.0,0.00027397,2]
[314939428,1708690242650,-500.0,0.00027397,2]
[314939429,1708690242659,-500.0,0.00027397,2]
[314939430,1708690242668,-500.0,0.00027397,2]
[314939431,1708690242678,-793.96,0.00027397,2]
[314939432,1708690242687,-500.0,0.00027397,2]
[314939433,1708690242696,-638.24,0.00027397,2]
[314939434,1708690242706,-500.0,0.00027397,2]
[314939435,1708690242716,-535.05389524,0.00027397,2]
[314939436,1708690242726,-513.11,0.00027397,2]
[314939437,1708690242737,-500.0,0.00027397,2]
[314939438,1708690242746,-500.0,0.00027397,2]
[314939439,1708690242756,-500.0,0.00027397,2]
[314939440,1708690242765,-1478.4,0.00027397,2]
[314939441,1708690242775,-2434.71,0.00027397,2]
[314939442,1708690242784,-500.0,0.00027397,2]
[314939443,1708690242793,-500.0,0.00027397,2]
[314939444,1708690242805,-500.0,0.00027397,2]
[314939445,1708690242814,-500.0,0.00027397,2]
[314939446,1708690242824,-500.0,0.00027397,2]
[314939447,1708690242833,-500.0,0.00027397,2]
[314939448,1708690242843,-500.0,0.00027397,2]
[314939449,1708690242852,-528.46912465,0.00027397,2]
[314939450,1708690242862,-3672.38,0.00027397,2]
[314939451,1708690242873,-500.0,0.00027397,2]
[314939452,1708690242882,-926.71,0.00027397,2]
[314939453,1708690242896,-500.0,0.00027397,2]
[314939454,1708690242906,-500.0,0.00027397,2]
[314939455,1708690242916,-842.42,0.00027397,2]
[314939456,1708690242925,-500.0,0.00027397,2]
[314939457,1708690242935,-500.0,0.00027397,2]
[314939458,1708690242945,-500.0,0.00027397,2]
[314939459,1708690242955,-500.0,0.00027397,2]
[314939460,1708690242964,-5063.8,0.00027397,2]
[314939461,1708690242974,-500.0,0.00027397,2]
[314939462,1708690242983,-1344.95,0.00027397,2]
[314939463,1708690242992,-1831.22,0.00027397,2]
[314939464,1708690243002,-210.92622717,0.00027397,2]
[314939465,1708690243011,-500.0,0.00027397,2]
[314939466,1708690243020,-500.0,0.00027397,2]
[314939467,1708690243030,-500.0,0.00027397,2]
[314939468,1708690243041,-500.0,0.00027397,2]
[314939469,1708690243054,-500.0,0.00027397,2]
[314939470,1708690243066,-500.0,0.00027397,2]
[314939471,1708690243075,-500.0,0.00027397,2]
[314939472,1708690243083,-500.0,0.00027397,2]
[314939473,1708690243092,-500.0,0.00027397,2]
[314939474,1708690243101,-500.0,0.00027397,2]
[314939475,1708690243111,-1534.42,0.00027397,2]
[314939476,1708690243121,-500.0,0.00027397,2]
[314939477,1708690243130,-596.78,0.00027397,2]
[314939478,1708690243141,-688.1,0.00027397,2]
[314939479,1708690243150,-536.88,0.00027397,2]
[314939480,1708690243159,-785.51,0.00027397,2]
[314939481,1708690243168,-500.0,0.00027397,2]
[314939482,1708690243178,-500.0,0.00027397,2]
[314939483,1708690243187,-500.0,0.00027397,2]
[314939484,1708690243197,-500.0,0.00027397,2]
[314939485,1708690243520,-699.22,0.00027397,2]
[314939486,1708690243530,-2233.66,0.00027397,2]
[314939487,1708690243540,-500.0,0.00027397,2]
[314939488,1708690243550,-1922.54,0.00027397,2]
[314939489,1708690243560,-500.0,0.00027397,2]
[314939490,1708690243569,-928.89,0.00027397,2]
[314939491,1708690243578,-500.0,0.00027397,2]
[314939492,1708690243587,-2210.42,0.00027397,2]
[314939493,1708690243596,-500.0,0.00027397,2]
[314939494,1708690243605,-500.0,0.00027397,2]
[314939495,1708690243614,-500.0,0.00027397,2]
[314939496,1708690243623,-693.84,0.00027397,2]
[314939497,1708690243633,-838.6,0.00027397,2]
[314939498,1708690243642,-500.0,0.00027397,2]
[314939499,1708690243651,-662.02,0.00027397,2]
[314939500,1708690243660,-535.86,0.00027397,2]
[314939501,1708690243670,-518.3127783,0.00027397,2]
[314939502,1708690243679,-1045.72,0.00027397,2]
[314939503,1708690243688,-500.0,0.00027397,2]
[314939504,1708690243698,-2507.73,0.00027397,2]
[314939505,1708690243707,-5010.66,0.00027397,2]
[314939506,1708690243717,-2943.77,0.00027397,2]
[314939507,1708690243726,-500.0,0.00027397,2]
[314939508,1708690243736,-500.0,0.00027397,2]
[314939509,1708690243745,-500.0,0.00027397,2]
[314939510,1708690243755,-500.0,0.00027397,2]
[314939511,1708690243765,-846.18,0.00027397,2]
[314939512,1708690243774,-500.0,0.00027397,2]
[314939513,1708690243784,-1801.66,0.00027397,2]
[314939514,1708690243793,-500.0,0.00027397,2]
[314939515,1708690243804,-500.0,0.00027397,2]
[314939516,1708690243813,-582.74,0.00027397,2]
[314939517,1708690243824,-500.0,0.00027397,2]
[314939518,1708690243835,-500.0,0.00027397,2]
[314939519,1708690243845,-1377.84,0.00027397,2]
[314939520,1708690243855,-500.0,0.00027397,2]
[314939521,1708690243876,-500.0,0.00027397,2]
[314939522,1708690243886,-2076.41,0.00027397,2]
[314939523,1708690243896,-535.59435299,0.00027397,2]
[314939524,1708690243906,-1493.16,0.00027397,2]
[314939525,1708690243916,-537.54,0.00027397,2]
[314939526,1708690243926,-5730.17,0.00027397,2]
[314939527,1708690243936,-500.0,0.00027397,2]
[314939528,1708690243946,-647.43,0.00027397,2]
[314939529,1708690243957,-500.0,0.00027397,2]
[314939530,1708690243967,-1013.04,0.00027397,2]
[314939531,1708690243977,-500.0,0.00027397,2]
[314939532,1708690243986,-500.0,0.00027397,2]
[314939533,1708690243996,-500.0,0.00027397,2]
[314939534,1708690244007,-500.0,0.00027397,2]
[314939535,1708690244017,-500.0,0.00027397,2]
[314939536,1708690244028,-637.02,0.00027397,2]
[314939537,1708690244040,-601.7,0.00027397,2]
[314939538,1708690244055,-9159.98,0.00027397,2]
[314939539,1708690244068,-1359.88,0.00027397,2]
[314939540,1708690244078,-500.0,0.00027397,2]
[314939542,1708690244088,-933.22,0.00027397,2]
[314939543,1708690244098,-500.0,0.00027397,2]
[314939545,1708690244108,-569.78,0.00027397,2]
[314939546,1708690244118,-1108.92,0.00027397,2]
[314939547,1708690244127,-500.0,0.00027397,2]
[314939548,1708690244138,-500.0,0.00027397,2]
[314939550,1708690244149,-1606.13,0.00027397,2]
[314939552,1708690244159,-722.95,0.00027397,2]
[314939553,1708690244169,-500.0,0.00027397,2]
[314939554,1708690244179,-500.0,0.00027397,2]
[314939555,1708690244189,-500.0,0.00027397,2]
[314939556,1708690244198,-500.0,0.00027397,2]
[314939557,1708690244208,-500.0,0.00027397,2]
[314939558,1708690244218,-500.0,0.00027397,2]
[314939559,1708690244228,-500.0,0.00027397,2]
[314939560,1708690244238,-2500.83,0.00027397,2]
[314939561,1708690244248,-500.0,0.00027397,2]
[314939562,1708690244258,-800.75,0.00027397,2]
[314939563,1708690244269,-522.23,0.00027397,2]
[314939564,1708690244278,-510.78,0.00027397,2]
[314939565,1708690244287,-500.0,0.00027397,2]
[314939566,1708690244298,-500.0,0.00027397,2]
[314939567,1708690244310,-500.0,0.00027397,2]
[314939568,1708690244320,-500.0,0.00027397,2]
[314939569,1708690244330,-500.0,0.00027397,2]
[314939570,1708690244339,-585.0,0.00027397,2]
[314939571,1708690244349,-1379.25,0.00027397,2]
[314939572,1708690244359,-500.0,0.00027397,2]
[314939573,1708690244369,-500.0,0.00027397,2]
[314939574,1708690244378,-500.0,0.00027397,2]
[314939575,1708690244388,-500.0,0.00027397,2]
[314939576,1708690244397,-500.0,0.00027397,2]
[314939577,1708690244407,-500.0,0.00027397,2]
[314939578,1708690244417,-500.0,0.00027397,2]
[314939579,1708690244426,-500.0,0.00027397,2]
[314939580,1708690244436,-500.0,0.00027397,2]
[314939581,1708690244446,-500.0,0.00027397,2]
[314939582,1708690244455,-3718.9,0.00027397,2]
[314939583,1708690244465,-1231.72,0.00027397,2]
[314939584,1708690244474,-1045.68,0.00027397,2]
[314939585,1708690244483,-590.34,0.00027397,2]
[314939586,1708690244493,-500.0,0.00027397,2]
[314939587,1708690244503,-500.0,0.00027397,2]
[314939588,1708690244513,-500.0,0.00027397,2]
[314939589,1708690244523,-500.0,0.00027397,2]
[314939590,1708690244533,-571.71621373,0.00027397,2]
[314939591,1708690244543,-1093.23,0.00027397,2]
[314939592,1708690244552,-500.0,0.00027397,2]
[314939593,1708690244563,-500.0,0.00027397,2]
[314939594,1708690244573,-521.70701592,0.00027397,2]
[314939595,1708690244582,-627.48,0.00027397,2]
[314939596,1708690244591,-2811.79,0.00027397,2]
[314939597,1708690244601,-918.88,0.00027397,2]
[314939598,1708690244610,-500.0,0.00027397,2]
[314939599,1708690244620,-500.0,0.00027397,2]
[314939600,1708690244630,-500.0,0.00027397,2]
[314939601,1708690244639,-500.0,0.00027397,2]
[314939602,1708690244648,-500.0,0.00027397,2]
[314939603,1708690244658,-500.0,0.00027397,2]
[314939604,1708690244667,-3861.09,0.00027397,2]
[314939605,1708690244677,-515.12919729,0.00027397,2]
[314939606,1708690244686,-500.0,0.00027397,2]
[314939607,1708690244696,-175.45815066,0.00027397,2]
[314939608,1708690244705,-4061.13,0.00027397,2]
[314939609,1708690244714,-810.42,0.00027397,2]
[314939610,1708690244724,-500.0,0.00027397,2]
[314939611,1708690244733,-2321.56,0.00027397,2]
[314939612,1708690244743,-500.0,0.00027397,2]
[314939613,1708690244752,-629.47731148,0.00027397,2]
[314939614,1708690244762,-1287.87,0.00027397,2]
[314939615,1708690244771,-2000.0,0.000274,2]
[314939616,1708690244780,-166.17575659,0.000274,2]
[314939617,1708690244790,-152.24,0.000274,2]
[314939618,1708690244799,-152.24,0.000274,2]
[314939619,1708690244811,-150.0,0.00027405,2]
[314939620,1708690244821,-199.0,0.0002741,5]
[314939621,1708690244831,-500.0,0.0002741,2]
[314939622,1708690244841,-388.00094647,0.0002741,2]
[314939623,1708690244850,-500.0,0.0002741,2]
[314939624,1708690244860,-500.0,0.0002741,2]
[314939625,1708690244869,-500.0,0.0002741,2]
[314939626,1708690244879,-500.0,0.00027411,2]
[314939627,1708690244889,-500.0,0.00027411,2]
[314939628,1708690244898,-526.39331553,0.00027411,2]
[314939629,1708690244907,-300.0,0.00027411,2]
[314939630,1708690244916,-300.0,0.00027411,2]
[314939631,1708690244926,-303.05778823,0.00027411,2]
[314939632,1708690244936,-21214.9469,0.00027434,2]
[314939633,1708690244945,-98368.54137638,0.00027434,2]
[314939634,1708690245371,-146631.45862362,0.00027434,2]
[314939635,1708690245381,-27471.8843,0.00027434,2]
[314939636,1708690245390,-2000.0,0.00027434,2]
[314939637,1708690245399,-200.0,0.00027434,2]
[314939638,1708690245408,-2000.0,0.00027434,2]
[314939639,1708690245418,-200.0,0.00027434,2]
[314939640,1708690245427,-2000.0,0.00027434,2]
[314939641,1708690245436,-200.0,0.00027434,2]
[314939642,1708690245446,-150.0,0.00027441,2]
[314939643,1708690245456,-150.0,0.00027456,2]
[314939644,1708690245465,-150.0,0.00027481,2]
[314939645,1708690245475,-12424.30947067,0.000275,2]
[314939646,1708690245485,-1500.0,0.0002751,2]
[314939647,1708690245496,-150.0,0.00027525,2]
[314939648,1708690245508,-1721.31502755,0.00027533,2]
[314939649,1708690245518,-533.87423377,0.00027534,2]
[314939650,1708690245529,-500.0,0.00027534,2]
[314939651,1708690245539,-1000.0,0.00027534,7]
[314939652,1708690245549,-500.0,0.00027534,2]
[314939653,1708690245560,-500.0,0.00027534,2]
[314939654,1708690245569,-500.0,0.00027534,2]
[314939655,1708690245578,-500.0,0.00027534,2]
[314939656,1708690245588,-500.0,0.00027534,2]
[314939657,1708690245597,-500.0,0.00027534,2]
[314939658,1708690245606,-500.0,0.00027534,2]
[314939659,1708690245616,-576.38038852,0.00027534,2]
[314939660,1708690245625,-500.0,0.00027534,2]
[314939661,1708690245634,-500.0,0.00027534,2]
[314939662,1708690245644,-500.0,0.00027534,2]
[314939663,1708690245653,-500.0,0.00027534,2]
[314939664,1708690245662,-500.0,0.00027534,2]
[314939665,1708690245672,-500.0,0.00027534,2]
[314939666,1708690245681,-535.1476207,0.00027534,2]
[314939667,1708690245691,-500.0,0.00027534,2]
[314939668,1708690245700,-500.0,0.00027534,2]
[314939669,1708690245709,-1209.21,0.00027534,2]
[314939670,1708690245718,-789.7,0.00027534,2]
[314939671,1708690245728,-500.0,0.00027534,2]
[314939672,1708690245737,-500.0,0.00027534,2]
[314939673,1708690245746,-500.0,0.00027534,2]
[314939674,1708690245756,-500.0,0.00027534,2]
[314939675,1708690245765,-573.29876496,0.00027534,2]
[314939676,1708690245774,-500.0,0.00027534,2]
[314939677,1708690245784,-305.10100647,0.00027534,2]
[314939678,1708690245793,-500.0,0.00027534,2]
[314939679,1708690245803,-500.0,0.00027534,2]
[314939680,1708690245813,-537.35604509,0.00027534,2]
[314939681,1708690245822,-500.0,0.00027534,2]
[314939682,1708690245831,-746.34,0.00027534,2]
[314939683,1708690245916,-500.0,0.00027534,2]
[314939684,1708690245926,-500.0,0.00027534,2]
[314939685,1708690245935,-500.0,0.00027534,2]
[314939686,1708690245944,-500.0,0.00027534,2]
[314939687,1708690245954,-500.0,0.00027534,2]
[314939688,1708690245963,-500.0,0.00027534,2]
[314939689,1708690245972,-827.14,0.00027534,2]
[314939690,1708690245982,-500.0,0.00027534,2]
[314939691,1708690245991,-500.0,0.00027534,2]
[314939692,1708690246001,-500.0,0.00027534,2]
[314939693,1708690246010,-500.0,0.00027534,2]
[314939694,1708690246019,-500.0,0.00027534,2]
[314939695,1708690246029,-500.0,0.00027534,2]
[314939696,1708690246038,-188.92919561,0.00027534,2]
[314939697,1708690246048,-500.0,0.00027534,2]
[314939698,1708690246059,-500.0,0.00027534,2]
[314939700,1708690246070,-584.32172268,0.00027534,2]
[314939701,1708690246080,-500.0,0.00027534,2]
[314939703,1708690246090,-500.0,0.00027534,2]
[314939705,1708690246100,-500.0,0.00027534,2]
[314939707,1708690246109,-500.0,0.00027534,2]
[314939709,1708690246117,-500.0,0.00027534,2]
[314939711,1708690246126,-500.0,0.00027534,2]
[314939712,1708690246136,-500.0,0.00027534,2]